Cogmind - Beta 14 @@@ ROGUE MODE // 2024.08.09 @ 17:48:32 Player: Daffa0360 Result: Destroyed by as-24313 with Assembled Maul Performance ------------- Evolutions (0) 0 Regions Visited (2) 400 Robots Destroyed (15) 75 Value Destroyed (323) 323 Prototype IDs (2) 40 Alien Tech Used (0) 0 Bonus (0) 0 TOTAL SCORE: 838 Bonus ------- None Cogmind --------- Core Integrity 0/250 Matter 240/300 Energy 99/100 System Corruption 5% Temperature Cool (0) Movement Walking (120) Location -10/Mines Parts ------- > --- POWER (1) -------- (None) > --- PROPULSION (2) --- Aluminum Leg Aluminum Leg > --- UTILITY (2) ------ (None) > --- WEAPON (2) ------- (None) > --- INVENTORY (5) ---- Light Nuclear Core Aluminum Leg Medium Laser Mining Laser Peak State ------------ > --- POWER ------------ Light Ion Engine > --- PROPULSION ------- Compact Wheel Compact Wheel > --- UTILITY ---------- Small Storage Unit Improved Terrain Scanner > --- WEAPON ----------- Assault Rifle Light Assault Rifle > --- INVENTORY -------- Light Ion Engine Light Nuclear Core Aluminum Leg Aluminum Leg Hacking Suite Medium Laser Grenade Launcher Mining Laser [Rating: 10] Favorites ----------- Power Light Ion Engine Engine Light Ion Engine Propulsion Compact Wheel Leg Aluminum Leg Wheel Compact Wheel Utility Small Storage Unit Device Improved Terrain Scanner Storage Small Storage Unit Weapon Assault Rifle Energy Gun Small Laser Ballistic Gun Assault Rifle Launcher Grenade Launcher Build | -11 -10 -10 ------- Run | Yrd Mat Min Slots Evolved . | . . . Power . | . . . Propulsion . | . . . Utility . | . . . Weapon . | . . . Parts Attached 16 | 7 2 7 Power 2 | 1 . 1 Engine 2 | 1 . 1 Core . | . . . Reactor . | . . . Propulsion 4 | 2 . 2 Treads . | . . . Leg 2 | . . 2 Wheel 2 | 2 . . Hover . | . . . Flight . | . . . Utility 3 | 2 . 1 Device 2 | 1 . 1 Storage 1 | 1 . . Processor . | . . . Hackware . | . . . Protection . | . . . Artifact . | . . . Weapon 7 | 2 2 3 Energy Gun 1 | . . 1 Energy Cannon . | . . . Ballistic Gun 3 | 2 . 1 Ballistic Cannon . | . . . Launcher 3 | . 2 1 Special Weapon . | . . . Impact Weapon . | . . . Slashing Weapon . | . . . Piercing Weapon . | . . . Special Melee Weapon . | . . . Unidentified Prototypes . | . . . Parts Lost 8 | . . 8 Power 1 | . . 1 Propulsion 2 | . . 2 Utility 2 | . . 2 Weapon 3 | . . 3 Highest Loss Streak 7 | . . 7 To Critical Strikes . | . . . Average Slot Usage (%) 91 | . 90 91 Engine 13 | . 14 12 Leg 1 | . . 2 Wheel 26 | . 28 24 Device 9 | . 4 12 Storage 13 | . 14 12 Energy Gun 1 | . . 2 Ballistic Gun 18 | . 18 18 Launcher 5 | . 9 3 Peak Build Rating 10 | 9 9 10 Average Rating 7 | 5 7 8 On Entrance 5 | . 9 7 Naked Turns . | . . . Heaviest Build 15 | 12 13 15 Greatest Support 32 | 32 32 32 Greatest Overweight (x) 3 | 3 . 3 Average Overweight (x) . | . . . Largest Inventory Capacity 8 | 8 8 8 Average Capacity 7 | 7 8 7 Most Carried 8 | 6 8 8 Average Carried 5 | 3 7 7 Final Capacity 8 | 8 8 5 Final Carried 8 | 5 8 4 Class Distribution -------------------- 100% | Mutant Dominant Class ---------------- Mutant | -10/Materials Mutant | -10/Mines Resources | -11 -10 -10 ----------- Run | Yrd Mat Min Matter Collected 516 | 289 35 192 Remotely . | . . . Salvage Created 454 | 113 79 262 Parts 41 | 21 8 12 Haulers Intercepted . | . . . Recyclers Shooed . | . . . Parts Field Recycled . | . . . Retrieved Matter . | . . . Parts Self-Destructed . | . . . Prevented . | . . . Kills | -11 -10 -10 ------- Run | Yrd Mat Min Combat Hostiles Destroyed 10 | . 2 8 Guns 4 | . . 4 AOE 6 | . 2 4 Classes Destroyed 6 | 1 3 2 Tunneler 6 | 6 . . Recycler 1 | . . 1 Operator 1 | . 1 . Watcher 1 | . 1 . Grunt 6 | . 2 4 Assembled 4 | . . 4 Best Kill Streak 5 | 2 4 5 Combat Bots Only 4 | . 2 4 Max Kills in Single Turn 3 | 1 2 3 Gunslinging . | . . . Exploded 3 | . 1 3 Melee . | . . . Uniques/NPCs Destroyed . | . . . Combat | -11 -10 -10 -------- Run | Yrd Mat Min Hostile Shots Fired 89 | . 5 84 Missed 21 | . 3 18 Damage Taken 1001 | . 33 968 Core 270 | . 16 254 Absorbed by Shields . | . . . Core Remaining (%) 100 | 100 . . Volleys Fired 54 | 25 7 22 Largest 2 | 2 2 2 Hottest 50 | 40 50 40 Shots Fired 100 | 50 13 37 Gun 93 | 50 10 33 Cannon . | . . . Launcher 7 | . 3 4 Special . | . . . Kinetic 92 | 50 10 32 Thermal 1 | . . 1 Explosive 7 | . 3 4 Electromagnetic . | . . . Robot Hit Streak 14 | 6 3 14 Robot Miss Streak 4 | 4 1 4 Penetration Max . | . . . Secondary Targets . | . . . Shots Hit Robots 55 | 22 8 25 Core Hits 37 | 8 6 23 Critical Kills . | . . . Critical Parts Destroyed . | . . . Critical Strikes . | . . . Melee Attacks . | . . . Impact . | . . . Slashing . | . . . Piercing . | . . . Sneak Attacks . | . . . Combat Hostiles . | . . . Follow-up Attacks . | . . . Damage Inflicted 1045 | 227 208 610 Guns 543 | 227 69 247 Cannons . | . . . Explosions 502 | . 139 363 Melee . | . . . Ramming . | . . . Kinetic 543 | 227 69 247 Thermal . | . . . Explosive 502 | . 139 363 Electromagnetic . | . . . Impact . | . . . Slashing . | . . . Piercing . | . . . Highest Corruption 5 | . . 5 Average Corruption 5 | . . 5 Corruption Purged . | . . . Corruption Blocked . | . . . Overload Shots . | . . . Overflow Damage 2 | . . 2 Projectiles . | . . . Explosions 2 | . . 2 Melee . | . . . Knockbacks . | . . . Impact . | . . . Kinetic . | . . . Secondary . | . . . Self-Inflicted Damage 17 | . . 17 Shots 2 | . . 2 Rammed . | . . . Targets Rammed . | . . . Kicked . | . . . Crushed . | . . . Highest Temperature 27 | . 5 27 Average Temperature 10 | . 3 10 Received Heat Transfer 293 | . 18 275 Siege Activations . | . . . Robots Corrupted . | . . . Combat Hostiles . | . . . Parts Fried . | . . . Impact Corruptions . | . . . Robots Melted . | . . . Combat Hostiles . | . . . Parts Melted . | . . . Heat Transferred . | . . . Parts Sabotaged . | . . . Parts Stolen . | . . . Parts Stripped . | . . . Power Chain Reactions . | . . . Alert | -11 -10 -10 ------- Run | Yrd Mat Min Peak Influence 150 | 30 125 150 Initial 48 | . 19 48 Average 54 | 10 81 94 Maximum Alert Level . | . . . Low Security (%) 100 | 100 100 100 Level 1 . | . . . Level 2 . | . . . Level 3 . | . . . Level 4 . | . . . Level 5 . | . . . High Security . | . . . Max Security . | . . . Squads Dispatched 1 | . 1 . Investigation . | . . . Extermination . | . . . Reinforcement 1 | . 1 . Assault . | . . . Garrison . | . . . Intercept . | . . . Searches Triggered . | . . . Construction Impeded . | . . . Haulers Reinforced . | . . . Active Scanning Responses . | . . . Cargo Convoy Interrupts . | . . . Stealth | -11 -10 -10 --------- Run | Yrd Mat Min Distress Signals . | . . . Communications Jammed . | . . . Distress Signals . | . . . Times Spotted 28 | . 7 21 Peak Tracking Total 20 | . 4 20 Tactical Retreats 1 | . . 1 Traps | -11 -10 -10 ------- Run | Yrd Mat Min Traps Triggered . | . . . Indirectly . | . . . Trap Hack Attempts . | . . . Triggered . | . . . Disarmed . | . . . Reprogrammed . | . . . Reused . | . . . Traps Extracted . | . . . Installed . | . . . Triggered . | . . . Machines | -11 -10 -10 ---------- Run | Yrd Mat Min Machines Disabled . | . . . Max in Single Turn . | . . . Machines Repaired . | . . . Machines Dismantled . | . . . Machines Sabotaged . | . . . Overloaded Fab Kills . | . . . Hacking | -11 -10 -10 --------- Run | Yrd Mat Min Machines Accessed 3 | . 2 1 Terminals 3 | . 2 1 Fabricators . | . . . Repair Stations . | . . . Recycling Units . | . . . Scanalyzers . | . . . Garrison Access . | . . . Total Hacks 7 | . 6 1 Successful 4 | . 3 1 Failed 3 | . 3 . Catastrophic . | . . . Database Lockouts . | . . . Manual . | . . . Terminals 7 | . 6 1 Fabricators . | . . . Repair Stations . | . . . Recycling Units . | . . . Scanalyzers . | . . . Garrison Access . | . . . Terminal Hacks 4 | . 3 1 Prototype ID Bank 1 | . 1 . Alert Level 1 | . 1 . Locate Traps 1 | . 1 . Zone Layout 1 | . . 1 Fabricator Hacks . | . . . Repair Station Hacks . | . . . Recycling Unit Hacks . | . . . Scanalyzer . | . . . Garrison Access Hacks . | . . . Unauthorized Hacks . | . . . Terminals . | . . . Fabricators . | . . . Repair Stations . | . . . Recycling Units . | . . . Scanalyzers . | . . . Garrison Access . | . . . Data Cores Recovered . | . . . Used . | . . . Hacking Detections 1 | . 1 . Full Trace Events . | . . . Feedback Events . | . . . Feedback Blocked . | . . . Robot Schematics Acquired . | . . . Robots Built . | . . . Authchips . | . . . Time . | . . . Total Robot Build Rating . | . . . Part Schematics Acquired . | . . . Parts Built . | . . . Authchips . | . . . Time . | . . . Total Part Build Rating . | . . . Parts Repaired . | . . . Time . | . . . Parts Recycled . | . . . Recycled Matter . | . . . Retrieved Matter . | . . . Retrieved Components . | . . . Parts Scanalyzed . | . . . Part Schematics Acquired . | . . . Parts Damaged . | . . . Bothacking | -11 -10 -10 ------------ Run | Yrd Mat Min Used RIF Installer . | . . . Robots Hacked . | . . . Non-combat . | . . . Combat . | . . . Robot Hacks Applied . | . . . Relay Couplers Released . | . . . Fabnet Peak Effective % . | . . . Robots Rewired . | . . . Allies Hacked . | . . . Hacks Repelled . | . . . Allies | -11 -10 -10 -------- Run | Yrd Mat Min Total Allies . | . . . Largest Group . | . . . Highest-Rated Group . | . . . Highest-Rated Ally . | . . . Total Orders . | . . . Ally Attacks . | . . . Total Damage . | . . . Kills . | . . . Allies Corrupted . | . . . Allies Melted . | . . . Intel | -11 -10 -10 ------- Run | Yrd Mat Min Robot Analysis Total . | . . . Derelict Logs Recovered . | . . . Drone Launches . | . . . Drone Recoveries . | . . . Exploration | -11 -10 -10 ------------- Run | Yrd Mat Min Turns Passed 722 | 313 177 232 Spaces Moved 503 | 213 149 141 Core 27 | 24 . 3 Treads . | . . . Legs 12 | . . 12 Wheels 464 | 189 149 126 Hover . | . . . Flight . | . . . Fastest Speed 50 | 50 100 100 Average Speed 102 | 103 100 103 Slowest Speed 200 | 200 100 200 Overloaded Moves . | . . . Propulsion Burnouts . | . . . Robots Hopped . | . . . Cave-ins Triggered . | . . . Exploration Rate (%) 25 | 9 34 33 Regions Visited 2 Branch Regions 1 Pre-discovered Areas 1 | . . 1 Known Exits Taken . | . . . Unknown Exits Taken 2 | 1 1 . Scrap Searched . | . . . Spaces Dug . | . . . Terrain Destroyed 23 | . 13 10 Melee . | . . . Projectile . | . . . AOE 23 | . 13 10 Terrain Rammed . | . . . Walls Destroyed . | . . . Machines Disabled . | . . . Actions | -11 -10 -10 --------- Run | Yrd Mat Min Total 616 | 260 165 191 Wait 25 | 4 2 19 Move 501 | 212 148 141 Hop . | . . . Pick Up 16 | 12 3 1 Fast Attach 3 | . 1 2 Attach 9 | 7 . 2 Detach 1 | . 1 . Swap 4 | . 1 3 Drop 3 | . 2 1 Fire 54 | 25 7 22 Melee . | . . . Ram . | . . . Kick . | . . . Crush . | . . . Escape Stasis . | . . . Rewire . | . . . Trap . | . . . Miscellaneous . | . . . Route ------- -11/Scrapyard -10/Materials (discovered 2 exits: [*Mat] / *Min) -10/Mines History --------- Turn | Location | Event 18 | -11/Scrapyard | Discovered new exit (range 15) 314 | -11/Scrapyard | Entered Materials 324 | -10/Materials | Build established: Mutant 423 | -10/Materials | Discovered new exit (range 7) 470 | -10/Materials | Discovered new exit (range 10) 491 | -10/Materials | Entered Mines 492 | -10/Mines | Learned location of Storage (-9) 682 | -10/Mines | Assembled infested the area 695 | -10/Mines | Core integrity fell below 50% 707 | -10/Mines | Core integrity fell below 20% 723 | -10/Mines | Destroyed by as-24313 with Assembled Maul Last Messages --------------- 00682_ ALERT: Infestation in the mines, dispatching Demolisher response squad. 00692_ as-82800 destroyed. 00693_ R-06 Scavenger knocked back. 00694_ R-06 Scavenger destroyed. 00696_ as-16912 destroyed. 00696_ Destroyed Asb. Hover Unit. 00696_ as-57404 destroyed. 00696_ as-57201 destroyed. 00698_ Com. Wheel destroyed. 00699_ Grenade Launcher destroyed. 00700_ Com. Wheel destroyed. 00700_ System corrupted by crushing effect (+5). 00700_ Knocked back. 00704_ Sml. Laser destroyed. 00705_ Ion Engine destroyed. 00706_ Imp. Terrain Scanner destroyed. 00706_ Acquired Aluminum Leg. 00706_ Sml. Storage Unit destroyed. 00722_ K-01 Serf collects debris. Map ----- +----------------------------------------------------+ | #????????????????????????????????????????????????? | | ?????????????????????????????????????????????????? | | #????????????????????????????????????????????????? | | ##???????????????????????????????????????????????? | | #??#????????????????????????????????????????????? | | #??????????????? ???????????????????????????????? | | ##??#????????????????????????????????????????????? | | #????????????????????????????????????????????????? | | #????????????? ??????????????????????????????????? | | #????#???????????????????????????????????????????? | | #???????? ?? ????? ?????????????????????????????? | | #????????#?? ??????? ????????????????????????????? | | #???????????????????#?? ?????????????????????????? | | #?????????????####?????? ??????????????????? ??? | | #######??????## ###???????????????????????? ??? | | #?#???## ##??#???????????????????? ??? | | ##### #???### #??## ???????????? ??? | | ????# #????# k #???## #????#???####$ #??# | | #???# #????## ##???## #????????# # #?# | | ????# ##????#= # k ####?## #???????## ## | | ????# ####### !### ##### ??? ??? | | ????# ! [[#?## #### ?????? ? % | | ????#########* #?## #####????##?# | | ??????####### ##?## #?##?????#?? | | ??????# #??### #???#??#??### | | ?#????# ##???####@ #?????????# | | ??????# #????#??#a #??#????### #? | | ??????# #??????##aa#??????## #?? | | ????#?# #?????#?# #??????# !%= ##? | | #?##??# """" #?????#?# #????#?# [ ## | | ?#??#?# """" ##???#?##aa###???## | | ??????# """" T#?#???# aa##???## | | ???#??############??#?## a ##?## ### | | ???????????????#???#### ### ##??# | | ??????????????????## a =! ##??? | | ??????????????????# ![* ##???? | | ?????????????#???## #### #????? | | ???????????????#??# ##??## ##????? | | ??????????????????# ## #????####??????? | | ??????????????????## ##### ##???????????????# | | ?????????????????#?#####??#####???##??#????????? | | ????????????????#?????#??????????????#??????#??# | | ?????????????????????#??????????#?????#?#???????? | | ???????????? ???????????????#???#????????????????? | | ?????????????????????????????????#??????????#????? | | ???????????????????????????#???????#?????????????? | | ?????????????????????????#???????????????????????? | | ?????????????????????????????????????????????????? | | ???????????????????????????????? ??? ????????????? | | ??????????????????????????????????#?#????????????? | +----------------------------------------------------+ Best States ------------- Heat Dissipation 25 Energy Generation 10 Energy Capacity 250 Matter Stores 275 Matter Capacity 300 Sight Range 16 Terrain Scan Range 16 Terrain Scan Density 10 Evasion (%) 50 Item Schematics ----------------- None Robot Schematics ------------------ None Fabricated ------------ Nothing Alien Tech Used ----------------- None Achievements -------------- None Challenges ------------ None Game ------ Seed QuantumPersonalTrap Manual? 0 Play Time 00:09:07 Cumulative 30.8 hours Start 2024.08.09 @ 17:39:08 End 2024.08.09 @ 17:48:32 Sessions 1 Manual Loads 0 Difficulty Rogue Special Mode None Game No. 54 Rogue 50 Adventurer 4 Explorer 0 Win Type - Total 0 Types 0/0/0/0/0/0/0/0/0 Lore% 8 Gallery% 28 Achievement% 19 Wizard Run 0 Options --------- Layout 1 ASCII 0 Keyboard 0 Movement Mouse Keybinds 0 Fullscreen 2 Font 24/Smallcaps Map View 50x35 Zoom Use 0% Tactical HUD 1 Map Filters NONE Filters NONE Steam 1 RUN: 1a794abe-6a90-43cb-a6c1-9624c6dc891e